bitfinex/quotes_BTCUSD_20251009
["timestamp","ask_amount","ask_price","bid_price","bid_amount"]
[1760039113518,0.16641229,120910.0,120900.0,0.26393371]
[1760039113724,0.39993229,120910.0,120900.0,0.26393371]
[1760039113875,0.39893229,120910.0,120900.0,0.26393371]
[1760039114083,0.39893229,120910.0,120900.0,0.26493371]
[1760039114731,0.39893229,120910.0,120900.0,0.09950774]
[1760039115151,0.39897229,120910.0,120900.0,0.09950774]
[1760039120040,0.39897229,120910.0,120900.0,0.09616204]
[1760039120444,0.39893229,120910.0,120900.0,0.09616204]
[1760039120649,0.16541229,120910.0,120900.0,0.09616204]
[1760039120850,0.39893229,120910.0,120900.0,0.09616204]
[1760039121059,0.16541229,120910.0,120900.0,0.09616204]
[1760039121463,0.16541229,120910.0,120900.0,0.26158801]
[1760039121464,0.39893229,120910.0,120900.0,0.26158801]
[1760039121820,0.16541229,120910.0,120900.0,0.26158801]
[1760039122024,0.39893229,120910.0,120900.0,0.26158801]
[1760039122197,0.16541229,120910.0,120900.0,0.26158801]
[1760039122423,0.28587275,120930.0,120900.0,0.34471007]
[1760039122613,0.17503875,120930.0,120920.0,0.02199]
[1760039122787,0.40863875,120930.0,120920.0,0.09799]
[1760039123195,0.00138268,120930.0,120920.0,0.26338861]
[1760039123411,0.23498268,120930.0,120920.0,0.26338861]
[1760039124243,0.40036761,120930.0,120920.0,0.26338861]
[1760039124450,0.40136761,120930.0,120920.0,0.26338861]
[1760039124654,0.16776761,120930.0,120920.0,0.26338861]
[1760039124881,0.16676761,120930.0,120920.0,0.26338861]
[1760039125075,0.40036761,120930.0,120920.0,0.26338861]
[1760039125288,0.16676761,120930.0,120920.0,0.27646129]
[1760039125491,0.40036761,120930.0,120920.0,0.27646129]
[1760039125699,0.40036761,120930.0,120920.0,0.27746129]
[1760039130606,0.16676761,120930.0,120920.0,0.09999]
[1760039131176,0.40028761,120930.0,120920.0,0.09999]
[1760039131429,0.40028761,120930.0,120920.0,0.36054737]
[1760039131595,0.23490268,120930.0,120920.0,0.36054737]
[1760039133013,0.00138268,120930.0,120920.0,0.36054737]
[1760039133433,0.00138268,120930.0,120920.0,0.59402737]
[1760039135267,0.00138268,120930.0,120920.0,0.59406737]
[1760039135783,0.00138268,120930.0,120920.0,0.62421927]
[1760039138243,0.00138268,120930.0,120920.0,0.39069927]
[1760039138451,0.00138268,120930.0,120920.0,0.62421927]
[1760039138868,0.00138268,120930.0,120920.0,0.39069927]
[1760039139351,0.00138268,120930.0,120920.0,0.62417927]
[1760039140181,0.00138268,120930.0,120920.0,0.39069927]
[1760039140820,0.00138268,120930.0,120920.0,0.62417927]
[1760039142320,0.00138268,120930.0,120920.0,0.39069927]
[1760039142560,0.00138268,120930.0,120920.0,0.62413927]
[1760039142798,0.00138268,120930.0,120920.0,0.39069927]
[1760039143051,0.16676761,120930.0,120920.0,0.19514876]
[1760039143286,0.16676761,120930.0,120920.0,0.42862876]
[1760039143524,0.16676761,120930.0,120920.0,0.59402737]
[1760039143760,0.16676761,120930.0,120920.0,0.41659206]
[1760039144483,0.16676761,120930.0,120920.0,0.18311206]
[1760039144689,0.16676761,120930.0,120920.0,0.09999]
[1760039145409,0.16676761,120930.0,120920.0,0.26538861]
[1760039145991,0.16676761,120930.0,120920.0,0.09999]
[1760039146524,0.00138268,120930.0,120920.0,0.26538861]
[1760039146953,0.00138268,120930.0,120920.0,0.58195067]
[1760039147966,0.00138268,120930.0,120920.0,0.58199067]
[1760039149786,0.00138268,120930.0,120920.0,0.58099067]
[1760039149994,0.00138268,120930.0,120920.0,0.57999067]
[1760039150191,0.00138268,120930.0,120920.0,0.58099067]
[1760039150415,0.00138268,120930.0,120920.0,0.58299067]
[1760039150617,0.00138268,120930.0,120920.0,0.34951067]
[1760039150856,0.00138268,120930.0,120920.0,0.58195067]
[1760039151054,0.00138268,120930.0,120920.0,0.34851067]
[1760039151261,0.00138268,120930.0,120920.0,0.58195067]
[1760039152037,0.00138268,120930.0,120920.0,0.58295067]
[1760039152847,0.16676761,120930.0,120920.0,0.34951067]
[1760039153246,0.16676761,120930.0,120920.0,0.58295067]
[1760039153674,0.16676761,120930.0,120920.0,0.41755206]
[1760039153855,0.16676761,120930.0,120920.0,0.58295067]
[1760039154494,0.16676761,120930.0,120920.0,0.18411206]
[1760039154783,0.16676761,120930.0,120920.0,0.10099]
[1760039155459,0.16676761,120930.0,120920.0,0.09999]
[1760039155929,0.16676761,120930.0,120920.0,0.10099]
[1760039156164,0.16676761,120930.0,120920.0,0.09799]
[1760039156384,0.16676761,120930.0,120920.0,0.09999]
[1760039156587,0.16676761,120930.0,120920.0,0.09899]
[1760039156935,0.16676761,120930.0,120920.0,0.10099]
[1760039157138,0.16676761,120930.0,120920.0,0.26638861]
[1760039157349,0.16676761,120930.0,120920.0,0.10099]
[1760039158596,0.16676761,120930.0,120920.0,0.09999]
[1760039158818,0.16676761,120930.0,120920.0,0.10099]
[1760039161516,0.16676761,120930.0,120920.0,0.09999]
[1760039161969,0.16676761,120930.0,120920.0,0.10199]
[1760039162349,0.16676761,120930.0,120920.0,0.26538861]
[1760039162557,0.16676761,120930.0,120920.0,0.26738861]
[1760039162769,0.16676761,120930.0,120920.0,0.10199]
[1760039162989,0.78709761,120930.0,120920.0,0.05722]
[1760039163954,0.78709761,120930.0,120920.0,0.05522]
[1760039164244,0.55365761,120930.0,120920.0,0.05622]
[1760039164441,0.87305761,120930.0,120920.0,0.05622]
[1760039165210,0.87305761,120930.0,120920.0,0.05422]
[1760039165824,0.87305761,120930.0,120920.0,0.05522]
[1760039166031,0.55365761,120930.0,120920.0,0.05422]
[1760039166251,0.88463863,120930.0,120920.0,0.05422]
[1760039166426,0.88463863,120930.0,120920.0,0.05522]
[1760039166740,0.88553863,120930.0,120920.0,0.05522]
[1760039167521,0.56613863,120930.0,120920.0,0.05522]
[1760039167737,0.88553863,120930.0,120920.0,0.05522]
[1760039168373,0.88553863,120930.0,120920.0,0.09908]
[1760039168592,0.84473761,120930.0,120920.0,0.09808]
[1760039168812,0.84473761,120930.0,120920.0,0.09908]
[1760039168981,0.84473761,120930.0,120920.0,0.10008]
[1760039169829,0.85597092,120930.0,120920.0,0.10008]
[1760039172500,0.53657092,120930.0,120920.0,0.10008]
[1760039172707,0.85601092,120930.0,120920.0,0.10008]
[1760039173105,0.55455761,120930.0,120920.0,0.10008]
[1760039173382,0.87399761,120930.0,120920.0,0.10008]
[1760039173573,0.87399761,120930.0,120920.0,0.05522]
[1760039174639,0.64055761,120930.0,120920.0,0.05522]
[1760039174881,0.97854441,120930.0,120920.0,0.002]
[1760039175092,0.57914761,120930.0,120920.0,0.002]
[1760039175313,0.87395761,120930.0,120920.0,0.002]
[1760039175538,0.16539861,120920.0,120910.0,0.06685]
[1760039175782,0.16539861,120920.0,120910.0,0.09634]
[1760039176899,0.16539861,120920.0,120910.0,0.09834]
[1760039177506,0.39879861,120920.0,120910.0,0.09834]
[1760039178043,0.39879861,120920.0,120910.0,0.10034]
[1760039178453,0.39879861,120920.0,120910.0,0.09834]
[1760039178884,0.39879861,120920.0,120910.0,0.10034]
[1760039183036,0.42801861,120920.0,120910.0,0.05548]
[1760039183555,0.39879861,120920.0,120910.0,0.10034]
[1760039183794,0.16539861,120920.0,120910.0,0.28229351]
[1760039184009,0.2334,120920.0,120910.0,0.26575229]
[1760039184531,0.2334,120920.0,120910.0,0.10034]
[1760039184741,0.2334,120920.0,120910.0,0.11688122]
[1760039185214,0.2334,120920.0,120910.0,0.28229351]
[1760039185413,0.2334,120920.0,120910.0,0.26575229]
[1760039186469,0.2334,120920.0,120910.0,0.10034]
[1760039186713,0.2334,120920.0,120910.0,0.11688122]
[1760039186928,0.2334,120920.0,120910.0,0.28229351]
[1760039187149,0.2334,120920.0,120910.0,0.26575229]
[1760039187740,0.2343,120920.0,120910.0,0.26575229]
[1760039190597,0.2343,120920.0,120910.0,0.10034]
[1760039190778,0.2343,120920.0,120910.0,0.11688122]
[1760039191025,0.16629861,120920.0,120910.0,0.11688122]
[1760039191240,0.2343,120920.0,120910.0,0.10034]
[1760039191631,0.39969861,120920.0,120910.0,0.10034]
[1760039195917,0.16629861,120920.0,120910.0,0.10034]
[1760039196130,0.39969861,120920.0,120910.0,0.10034]
[1760039200108,0.2343,120920.0,120910.0,0.10034]
[1760039200312,0.39969861,120920.0,120910.0,0.10034]
[1760039200855,0.2343,120920.0,120910.0,0.26575229]
[1760039201072,0.0009,120920.0,120910.0,0.26575229]
[1760039201288,0.0009,120920.0,120910.0,0.34887435]
[1760039212547,0.0009,120920.0,120910.0,0.10034]
[1760039212548,0.16629861,120920.0,120910.0,0.10034]
[1760039213773,0.39965861,120920.0,120910.0,0.10034]
[1760039214816,0.16629861,120920.0,120910.0,0.10034]
[1760039215022,0.39965861,120920.0,120910.0,0.10034]
[1760039217570,0.16629861,120920.0,120910.0,0.26575229]
[1760039217793,0.39965861,120920.0,120910.0,0.26575229]
[1760039220222,0.16629861,120920.0,120910.0,0.26575229]
[1760039220418,0.16629861,120920.0,120910.0,0.10034]
[1760039220562,0.16629861,120920.0,120910.0,0.09966588]
[1760039220563,0.39965861,120920.0,120910.0,0.09966588]
[1760039221416,0.39965861,120920.0,120910.0,0.26507817]
[1760039221828,0.39965861,120920.0,120910.0,0.09966588]
[1760039222441,0.39965861,120920.0,120910.0,0.26507817]
[1760039225580,0.39965861,120920.0,120910.0,0.09966588]
[1760039226733,0.16629861,120920.0,120910.0,0.26507817]
[1760039226941,0.39965861,120920.0,120910.0,0.26507817]
[1760039230389,0.39965861,120920.0,120910.0,0.09966588]
[1760039231194,0.16629861,120920.0,120910.0,0.09966588]
[1760039231322,0.39965861,120920.0,120910.0,0.09966588]
[1760039231719,0.16629861,120920.0,120910.0,0.26507817]
[1760039231974,0.39965861,120920.0,120910.0,0.26507817]
[1760039233067,0.16629861,120920.0,120910.0,0.26507817]
[1760039233248,0.39965861,120920.0,120910.0,0.26507817]
[1760039235006,0.16629861,120920.0,120910.0,0.26507817]
[1760039235234,0.23426,120920.0,120910.0,0.26507817]
[1760039235732,0.0009,120920.0,120910.0,0.26507817]
[1760039235968,0.0009,120920.0,120910.0,0.34820023]
[1760039237226,0.0009,120920.0,120910.0,0.58156023]
[1760039238500,0.0009,120920.0,120910.0,0.57956023]
[1760039240668,0.16629861,120920.0,120910.0,0.34620023]
[1760039241099,0.16629861,120920.0,120910.0,0.18078794]
[1760039242569,0.16629861,120920.0,120910.0,0.34820023]
[1760039242777,0.16629861,120920.0,120910.0,0.34620023]
[1760039242987,0.16629861,120920.0,120910.0,0.34420023]
[1760039243543,0.16629861,120920.0,120910.0,0.34820023]
[1760039243731,0.16629861,120920.0,120910.0,0.34620023]
[1760039244383,0.16629861,120920.0,120910.0,0.34820023]
[1760039248731,0.16629861,120920.0,120910.0,0.09966588]
[1760039248942,0.16629861,120920.0,120910.0,0.26507817]
[1760039249478,0.16629861,120920.0,120910.0,0.26307817]
[1760039249718,0.16629861,120920.0,120910.0,0.26507817]
[1760039250082,0.16629861,120920.0,120910.0,0.26307817]
[1760039250341,0.16629861,120920.0,120910.0,0.09766588]
[1760039250533,0.16629861,120920.0,120910.0,0.09966588]
[1760039251071,0.16629861,120920.0,120910.0,0.26507817]
[1760039251914,0.16629861,120920.0,120910.0,0.09966588]
[1760039252124,0.16629861,120920.0,120910.0,0.26507817]
[1760039252848,0.39965861,120920.0,120910.0,0.26507817]
[1760039253896,0.16629861,120920.0,120910.0,0.26507817]
[1760039254167,0.39965861,120920.0,120910.0,0.26507817]
[1760039258124,0.39965861,120920.0,120910.0,0.09966588]
[1760039258328,0.39965861,120920.0,120910.0,0.26507817]
[1760039259743,0.39965861,120920.0,120910.0,0.09966588]
[1760039260533,0.39965861,120920.0,120910.0,0.26507817]
[1760039260956,0.39965861,120920.0,120910.0,0.09966588]
[1760039263115,0.16629861,120920.0,120910.0,0.09966588]
[1760039263325,0.39965861,120920.0,120910.0,0.09966588]
[1760039264529,0.16629861,120920.0,120910.0,0.26507817]
[1760039264730,0.39965861,120920.0,120910.0,0.26507817]
[1760039265655,0.39965861,120920.0,120910.0,0.09966588]
[1760039267557,0.39965861,120920.0,120910.0,0.26507817]
[1760039268431,0.39965861,120920.0,120910.0,0.09966588]
[1760039268841,0.16629861,120920.0,120910.0,0.09966588]
[1760039269147,0.39965861,120920.0,120910.0,0.09966588]
[1760039270668,0.39965861,120920.0,120910.0,0.09766588]
[1760039270869,0.16629861,120920.0,120910.0,0.09766588]
[1760039271079,0.39965861,120920.0,120910.0,0.09966588]
[1760039271482,0.39965861,120920.0,120910.0,0.09766588]
[1760039271658,0.39965861,120920.0,120910.0,0.09566588]
[1760039271881,0.39965861,120920.0,120910.0,0.09966588]
[1760039272175,0.39965861,120920.0,120910.0,0.09766588]
[1760039272587,0.39965861,120920.0,120910.0,0.09966588]
[1760039274414,0.16629861,120920.0,120910.0,0.09966588]
[1760039274586,0.39965861,120920.0,120910.0,0.09966588]
[1760039274808,0.62720363,120920.0,120910.0,0.05480588]
[1760039274970,0.49107128,120920.0,120910.0,0.05480588]
[1760039275172,0.46249128,120920.0,120910.0,0.09476588]
[1760039275378,0.40584861,120920.0,120910.0,0.09276588]
[1760039276069,0.40584861,120920.0,120910.0,0.09376588]
[1760039276259,0.17248861,120920.0,120910.0,0.09376588]
[1760039276598,0.16629861,120920.0,120910.0,0.09376588]
[1760039276758,0.39965861,120920.0,120910.0,0.09376588]
[1760039276966,0.39965861,120920.0,120910.0,0.09176588]
[1760039277186,0.39965861,120920.0,120910.0,0.09276588]
[1760039280340,0.16629861,120920.0,120910.0,0.09276588]
[1760039280553,0.39965861,120920.0,120910.0,0.09276588]
[1760039282599,0.16629861,120920.0,120910.0,0.09276588]
[1760039282748,0.39965861,120920.0,120910.0,0.09276588]
[1760039284983,0.16629861,120920.0,120910.0,0.09276588]
[1760039285122,0.39965861,120920.0,120910.0,0.09276588]
[1760039285319,0.16629861,120920.0,120910.0,0.09276588]
[1760039285544,0.39965861,120920.0,120910.0,0.1093071]
[1760039286167,0.39965861,120920.0,120910.0,0.09276588]
[1760039287865,0.16629861,120920.0,120910.0,0.09276588]
[1760039288090,0.39965861,120920.0,120910.0,0.09276588]
[1760039289416,0.39965861,120920.0,120910.0,0.1093071]
[1760039289797,0.16629861,120920.0,120910.0,0.1093071]
[1760039290009,0.39965861,120920.0,120910.0,0.09276588]
[1760039293423,0.39965861,120920.0,120910.0,0.27471939]
[1760039293677,0.39965861,120920.0,120910.0,0.09276588]
[1760039293829,0.39965861,120920.0,120910.0,0.1093071]
[1760039297096,0.39965861,120920.0,120910.0,0.09276588]
[1760039298290,0.0009,120920.0,120910.0,0.27471939]
[1760039298527,0.23426,120920.0,120910.0,0.25817817]
[1760039299333,0.0009,120920.0,120910.0,0.25817817]
[1760039299539,0.23426,120920.0,120910.0,0.25817817]
[1760039299674,0.23426,120920.0,120910.0,0.34130023]
[1760039300062,0.0009,120920.0,120910.0,0.34130023]
[1760039300732,0.16629861,120920.0,120910.0,0.34130023]
[1760039301373,0.16629861,120920.0,120910.0,0.17588794]
[1760039301816,0.16629861,120920.0,120910.0,0.34130023]
[1760039306593,0.16629861,120920.0,120910.0,0.09276588]
[1760039306798,0.39961861,120920.0,120910.0,0.25817817]
[1760039307020,0.0009,120920.0,120910.0,0.25817817]
[1760039307222,0.0009,120920.0,120910.0,0.60477213]
[1760039307411,0.0009,120920.0,120910.0,0.62960131]
[1760039307629,0.00138268,120930.0,120920.0,0.16539861]
[1760039307841,0.00138268,120930.0,120920.0,0.28637053]
[1760039308057,0.00138268,120930.0,120920.0,0.33820067]
[1760039308270,0.00138268,120930.0,120920.0,0.57160067]
[1760039308893,0.00138268,120930.0,120920.0,0.57260067]
[1760039309099,0.00138268,120930.0,120920.0,0.33920067]
[1760039309311,0.00138268,120930.0,120920.0,0.57360067]
[1760039309756,0.00138268,120930.0,120920.0,0.57356067]
[1760039311111,0.00138268,120930.0,120920.0,0.57556067]
[1760039315012,0.00588268,120930.0,120920.0,0.57556067]
[1760039315414,0.00588268,120930.0,120920.0,0.57552067]
[1760039316337,0.00588268,120930.0,120920.0,0.37235257]
[1760039316562,0.00588268,120930.0,120920.0,0.60571257]
[1760039316778,0.00588268,120930.0,120920.0,0.63053904]
[1760039316960,0.00588268,120930.0,120920.0,0.97053904]
[1760039317162,0.00588268,120930.0,120920.0,1.07061903]
[1760039317532,0.00588268,120930.0,120920.0,0.97061904]
[1760039317734,0.00588268,120930.0,120920.0,1.07061903]
[1760039318583,0.00588268,120930.0,120920.0,0.83717903]
[1760039318723,0.00588268,120930.0,120920.0,1.07061903]
[1760039320205,0.00588268,120930.0,120920.0,1.07065903]
[1760039321518,0.00588268,120930.0,120920.0,1.07061903]
[1760039321749,0.00588268,120930.0,120920.0,0.83517903]
[1760039321977,0.00588268,120930.0,120920.0,1.15657903]
[1760039322860,0.00588268,120930.0,120920.0,1.15457903]
[1760039323290,0.00588268,120930.0,120920.0,1.15657903]
[1760039324579,0.00588268,120930.0,120920.0,1.15653903]
[1760039324990,0.00588268,120930.0,120920.0,1.07057903]
[1760039325213,0.00588268,120930.0,120920.0,1.15653903]
[1760039325420,0.00588268,120930.0,120920.0,0.48313904]
[1760039325675,0.00588268,120930.0,120920.0,0.63061904]
[1760039325886,0.00588268,120930.0,120920.0,0.71657904]
[1760039326546,0.00588268,120930.0,120920.0,0.63057904]
[1760039326760,0.00588268,120930.0,120920.0,0.71653904]
[1760039326968,0.00588268,120930.0,120920.0,0.71665904]
[1760039330617,0.00588268,120930.0,120920.0,0.39717904]
[1760039330844,0.00588268,120930.0,120920.0,0.36702714]
[1760039331066,0.00588268,120930.0,120920.0,0.60054714]
[1760039331484,0.00588268,120930.0,120920.0,0.34220067]
[1760039331721,0.00588268,120930.0,120920.0,0.34020067]
[1760039331936,0.00588268,120930.0,120920.0,0.57576067]
[1760039332149,0.00588268,120930.0,120920.0,0.57376067]
[1760039332361,0.00588268,120930.0,120920.0,0.57476067]
[1760039333260,0.00588268,120930.0,120920.0,0.57276067]
[1760039333474,0.00588268,120930.0,120920.0,0.57376067]
[1760039334442,0.00588268,120930.0,120920.0,0.57372067]
[1760039335244,0.00588268,120930.0,120920.0,0.60387257]
[1760039335490,0.00588268,120930.0,120920.0,0.62869976]
[1760039339443,0.00588268,120930.0,120920.0,0.62877976]
[1760039340646,0.00588268,120930.0,120920.0,0.39517976]
[1760039340920,0.00588268,120930.0,120920.0,0.62877976]
[1760039341182,0.00588268,120930.0,120920.0,0.62852976]
[1760039344455,0.00588268,120930.0,120920.0,1.06852975]
[1760039345080,0.00588268,120930.0,120920.0,1.06652975]
[1760039345517,0.00588268,120930.0,120920.0,1.06852975]
[1760039345724,0.00588268,120930.0,120920.0,1.07052975]
[1760039346324,0.00588268,120930.0,120920.0,0.83692975]
[1760039346564,0.00588268,120930.0,120920.0,1.15644975]
[1760039347359,0.00588268,120930.0,120920.0,0.92288975]
[1760039347546,0.00588268,120930.0,120920.0,1.15644975]
[1760039347941,0.00588268,120930.0,120920.0,0.83692975]
[1760039348124,0.00588268,120930.0,120920.0,1.15644975]
[1760039349727,0.00588268,120930.0,120920.0,0.83692975]
[1760039349928,0.00588268,120930.0,120920.0,1.15644975]
[1760039350558,0.00588268,120930.0,120920.0,0.83692975]
[1760039350849,0.00588268,120930.0,120920.0,1.15644975]
[1760039351194,0.00588268,120930.0,120920.0,1.15640975]
[1760039351698,0.00588268,120930.0,120920.0,0.83692975]
[1760039351898,0.00588268,120930.0,120920.0,0.97044976]
[1760039352081,0.00588268,120930.0,120920.0,1.05640976]
[1760039352716,0.00588268,120930.0,120920.0,1.15640975]
[1760039355637,0.00588268,120930.0,120920.0,1.15644975]
[1760039360087,0.00588268,120930.0,120920.0,0.92288975]
[1760039360246,0.00588268,120930.0,120920.0,1.15640975]
[1760039360467,0.00588268,120930.0,120920.0,0.83692975]
[1760039360672,0.00588268,120930.0,120920.0,1.15640975]
[1760039360873,0.00588268,120930.0,120920.0,0.83692975]
[1760039361075,0.00588268,120930.0,120920.0,1.15640975]
[1760039366787,0.00588268,120930.0,120920.0,1.15632975]
[1760039367601,0.00588268,120930.0,120920.0,0.92288975]
[1760039367815,0.00588268,120930.0,120920.0,1.15644975]
[1760039370210,0.00588268,120930.0,120920.0,1.07048975]
[1760039370355,0.00588268,120930.0,120920.0,1.15644975]
[1760039370775,0.00588268,120930.0,120920.0,1.07044975]
[1760039370983,0.00588268,120930.0,120920.0,1.15640975]
[1760039371711,0.00588268,120930.0,120920.0,1.07044975]
[1760039371943,0.00588268,120930.0,120920.0,1.15640975]
[1760039372474,0.00588268,120930.0,120920.0,1.07044975]
[1760039372698,0.00588268,120930.0,120920.0,1.15640975]
[1760039375133,0.00588268,120930.0,120920.0,1.15644975]
[1760039379479,0.00588268,120930.0,120920.0,0.92288975]
[1760039379620,0.00588268,120930.0,120920.0,1.15640975]
[1760039379832,0.00588268,120930.0,120920.0,0.83692975]
[1760039380040,0.00588268,120930.0,120920.0,1.15640975]
[1760039380841,0.00588268,120930.0,120920.0,0.83692975]
[1760039381049,0.00588268,120930.0,120920.0,1.15640975]
[1760039381907,0.00588268,120930.0,120920.0,0.92288975]
[1760039382148,0.00588268,120930.0,120920.0,1.15640975]
[1760039383234,0.00588268,120930.0,120920.0,1.15636975]
[1760039391616,0.00588268,120930.0,120920.0,1.15632975]
[1760039396519,0.00588268,120930.0,120920.0,1.15628975]
[1760039398477,0.00588268,120930.0,120920.0,0.83692975]
[1760039398678,0.00588268,120930.0,120920.0,1.15624975]
[1760039399533,0.00588268,120930.0,120920.0,0.73692976]
[1760039399757,0.00588268,120930.0,120920.0,1.15624975]
[1760039400430,4.81158742,120960.0,120920.0,0.92288975]
[1760039400653,4.3510819,120960.0,120950.0,0.61863154]
[1760039400875,4.1886819,120960.0,120950.0,0.82434153]
[1760039401099,4.0844819,120960.0,120950.0,0.80029153]
[1760039401325,4.0844819,120960.0,120950.0,0.82529152]
[1760039401552,4.0865518,120960.0,120950.0,0.85010634]
[1760039401964,4.08705565,120960.0,120950.0,0.85010634]
[1760039402113,4.08705565,120960.0,120950.0,1.06090635]
[1760039402342,4.08705565,120960.0,120950.0,0.82710635]
[1760039402758,4.08705565,120960.0,120950.0,1.04686636]
[1760039403157,4.08705565,120960.0,120950.0,0.91506635]
[1760039403559,4.08705565,120960.0,120950.0,1.14886635]
[1760039403758,4.08705565,120960.0,120950.0,0.91506635]
[1760039403964,4.08705565,120960.0,120950.0,1.06290635]
[1760039404174,4.08705565,120960.0,120950.0,0.82910635]
[1760039404378,4.08705565,120960.0,120950.0,1.14886635]
[1760039404568,4.08705565,120960.0,120950.0,1.04886636]
[1760039404816,4.08705565,120960.0,120950.0,1.14882635]
[1760039405005,4.08705565,120960.0,120950.0,1.20947515]
[1760039405390,4.08705565,120960.0,120950.0,0.85265515]
[1760039405599,4.09115565,120960.0,120950.0,1.17237515]
[1760039406156,4.09115565,120960.0,120950.0,0.93861515]
[1760039406363,4.09115565,120960.0,120950.0,1.17241515]
[1760039406954,4.09115565,120960.0,120950.0,1.06841516]
[1760039407163,4.09115565,120960.0,120950.0,1.07141516]
[1760039407643,4.09115565,120960.0,120950.0,0.75165516]
[1760039407863,4.09115565,120960.0,120950.0,1.07137516]
[1760039408081,4.09115565,120960.0,120950.0,0.83757516]
[1760039408724,4.09115565,120960.0,120950.0,1.07137516]
[1760039408937,4.09115565,120960.0,120950.0,1.07133516]
[1760039409374,3.91870083,120960.0,120950.0,1.07133516]
[1760039409577,3.91870083,120960.0,120950.0,0.83757516]
[1760039410007,3.91870083,120960.0,120950.0,1.07133516]
[1760039410173,3.91870083,120960.0,120950.0,0.83757516]
[1760039411241,3.91870083,120960.0,120950.0,1.07133516]
[1760039412561,3.91870083,120960.0,120950.0,1.07129516]
[1760039413211,3.91870083,120960.0,120950.0,0.83757516]
[1760039413431,3.91870083,120960.0,120950.0,0.46742326]
[1760039413653,3.96396083,120960.0,120950.0,0.67641326]
[1760039414077,3.96396083,120960.0,120950.0,0.35669326]
[1760039414496,3.96396083,120960.0,120950.0,0.67537326]
[1760039414714,3.96396083,120960.0,120950.0,0.67337326]
[1760039414950,3.96396083,120960.0,120950.0,0.67537326]
[1760039415383,3.96396083,120960.0,120950.0,0.44161326]
[1760039415594,3.96396083,120960.0,120950.0,0.67537326]
[1760039418099,3.96396083,120960.0,120950.0,0.44161326]
[1760039418295,3.96396083,120960.0,120950.0,0.67537326]
[1760039419143,4.00343083,120960.0,120950.0,0.18710758]
[1760039419347,4.16877474,120960.0,120950.0,0.42082758]
[1760039419530,4.16877474,120960.0,120950.0,0.18710758]
[1760039419746,4.16877474,120960.0,120950.0,0.42082758]
[1760039420078,4.16877474,120960.0,120950.0,0.41982758]
[1760039420493,4.16877474,120960.0,120950.0,0.41882758]
[1760039420901,4.16877474,120960.0,120950.0,0.18610758]
[1760039421104,4.16877474,120960.0,120950.0,0.41982758]
[1760039422028,4.00343083,120960.0,120950.0,0.41982758]
[1760039422169,4.16877474,120960.0,120950.0,0.18610758]
[1760039422381,4.16877474,120960.0,120950.0,0.41982758]
[1760039423194,4.00343083,120960.0,120950.0,0.41982758]
[1760039424053,4.16877474,120960.0,120950.0,0.41982758]
[1760039425310,4.16877474,120960.0,120950.0,0.18610758]
[1760039425517,4.16877474,120960.0,120950.0,0.41982758]
[1760039426146,4.00343083,120960.0,120950.0,0.41982758]
[1760039426381,3.96396083,120960.0,120950.0,0.41982758]
[1760039426602,3.91870083,120960.0,120950.0,0.41982758]
[1760039427009,3.94566083,120960.0,120950.0,0.18610758]
[1760039427218,3.91870083,120960.0,120950.0,0.41978758]
[1760039428732,3.94566083,120960.0,120950.0,0.41978758]
[1760039429261,3.91870083,120960.0,120950.0,0.50290964]
[1760039429459,3.94566083,120960.0,120950.0,0.50290964]
[1760039431169,3.96396083,120960.0,120950.0,0.26922964]
[1760039431373,4.00343083,120960.0,120950.0,0.50290964]
[1760039431568,4.00343083,120960.0,120950.0,0.50286964]
[1760039432534,4.16877474,120960.0,120950.0,0.26922964]
[1760039432733,4.16877474,120960.0,120950.0,0.001]
[1760039432941,4.16877474,120960.0,120950.0,0.39999758]
[1760039433983,4.16877474,120960.0,120950.0,0.16635758]
[1760039434207,4.16877474,120960.0,120950.0,0.39999758]
[1760039434422,4.16877474,120960.0,120950.0,0.40003758]
[1760039435833,4.16877474,120960.0,120950.0,0.23468]
[1760039436185,4.16877474,120960.0,120950.0,0.40003758]
[1760039436384,4.16877474,120960.0,120950.0,0.23468]
[1760039436760,4.16877474,120960.0,120950.0,0.40003758]
[1760039437657,4.16877474,120960.0,120950.0,0.16635758]
[1760039437899,4.16877474,120960.0,120950.0,0.40003758]
[1760039439586,4.40241474,120960.0,120950.0,0.001]
[1760039439803,4.4718232,120960.0,120950.0,0.001]
[1760039440010,4.40241474,120960.0,120950.0,0.001]
[1760039440384,4.7054632,120960.0,120950.0,0.001]
[1760039440779,5.12460251,120960.0,120950.0,0.001]
[1760039440980,5.44140457,120960.0,120950.0,0.001]
[1760039441188,4.91530445,120960.0,120950.0,0.001]
[1760039441365,5.21835291,120960.0,120950.0,0.001]
[1760039441780,5.28772137,120960.0,120950.0,0.001]
[1760039442237,5.52144137,120960.0,120950.0,0.001]
[1760039443090,5.21839291,120960.0,120950.0,0.001]
[1760039443522,5.13839611,120960.0,120950.0,0.001]
[1760039443938,4.90467611,120960.0,120950.0,0.001]
[1760039444086,4.60162765,120960.0,120950.0,0.001]
[1760039444440,4.83530765,120960.0,120950.0,0.001]
[1760039445263,5.13835611,120960.0,120950.0,0.001]
[1760039446114,5.28772137,120960.0,120950.0,0.001]
[1760039446327,5.52140137,120960.0,120950.0,0.001]
[1760039447913,5.21835291,120960.0,120950.0,0.001]
[1760039448546,5.13835611,120960.0,120950.0,0.001]
[1760039448756,4.90467611,120960.0,120950.0,0.001]
[1760039448965,5.13835611,120960.0,120950.0,0.001]
[1760039449384,5.20772457,120960.0,120950.0,0.001]
[1760039449600,5.44140457,120960.0,120950.0,0.001]
[1760039449798,4.98467291,120960.0,120950.0,0.001]
[1760039450011,5.21835291,120960.0,120950.0,0.001]
[1760039450417,5.52140137,120960.0,120950.0,0.001]
[1760039450649,4.68162445,120960.0,120950.0,0.001]
[1760039450892,5.21835291,120960.0,120950.0,0.001]
[1760039451092,4.90467611,120960.0,120950.0,0.001]
[1760039451237,5.13835611,120960.0,120950.0,0.001]
[1760039453510,4.60162765,120960.0,120950.0,0.001]
[1760039453722,5.13831611,120960.0,120950.0,0.001]
[1760039454145,5.13239611,120960.0,120950.0,0.001]
[1760039455570,4.89875611,120960.0,120950.0,0.001]
[1760039456006,5.13239611,120960.0,120950.0,0.001]
[1760039458328,4.5859768,120960.0,120950.0,0.001]
[1760039458537,5.12266526,120960.0,120950.0,0.001]
[1760039460251,4.8196168,120960.0,120950.0,0.001]
[1760039460435,5.12266526,120960.0,120950.0,0.001]
[1760039460638,4.89866093,120960.0,120950.0,0.001]
[1760039460885,5.13226093,120960.0,120950.0,0.001]
[1760039461651,4.82921247,120960.0,120950.0,0.001]
[1760039461861,5.28170619,120960.0,120950.0,0.001]
[1760039462283,5.51530619,120960.0,120950.0,0.001]
[1760039462486,5.52303266,120960.0,120950.0,0.001]
[1760039462913,0.16538493,120930.0,120920.0,0.00034738]
[1760039463133,0.41858493,120930.0,120920.0,0.00034738]